bitfinex/quotes_SOLUSD_20250919
["timestamp","ask_amount","ask_price","bid_price","bid_amount"]
[1758241845078,0.72,248.22,248.18,10.07333387]
[1758241845284,31.64,248.22,248.18,10.07333387]
[1758241845487,0.72,248.22,248.18,10.07333387]
[1758241846099,0.72,248.21,248.18,10.07333387]
[1758241846490,0.06,248.24,248.18,10.07333387]
[1758241846688,0.72,248.23,248.18,10.07333387]
[1758241846887,0.72,248.22,248.18,10.07333387]
[1758241847600,0.72,248.21,248.18,10.07333387]
[1758241850184,0.72,248.2,248.17,4.02949591]
[1758241850384,0.72,248.19,248.17,4.02949591]
[1758241850588,45.21559401,248.18,248.17,4.02949591]
[1758241851699,45.21559401,248.18,248.11,20.18188552]
[1758241851700,13.59559401,248.17,248.11,34.28853175]
[1758241851913,0.72,248.16,248.11,34.28853175]
[1758241852116,0.72,248.15,248.11,34.28853175]
[1758241852704,0.72,248.17,248.11,34.90853175]
[1758241852903,30.9,248.16,248.11,34.90853175]
[1758241853279,0.72,248.15,248.11,34.28853175]
[1758241854701,13.59559401,248.15,248.11,14.13664623]
[1758241854884,13.59559401,248.13,248.11,4.06047035]
[1758241855087,0.28432314,248.12,248.11,0.03]
[1758241855321,16.02254233,248.12,248.08,0.03]
[1758241855476,0.28432314,248.1,248.08,0.03]
[1758241855880,14.29559401,248.09,248.08,0.03]
[1758241857777,45.21559401,248.09,248.08,0.03]
[1758241859394,46.94254233,248.09,248.08,0.03]
[1758241859591,45.49991715,248.09,248.08,0.03]
[1758241861111,14.57991715,248.09,248.08,0.03]
[1758241861287,45.49991715,248.09,248.08,0.03]
[1758241861488,14.57991715,248.09,248.08,0.03]
[1758241861690,45.49991715,248.09,248.08,0.03]
[1758241862300,14.57991715,248.09,248.08,0.03]
[1758241862509,45.49991715,248.09,248.08,0.03]
[1758241863008,14.57991715,248.09,248.08,0.03]
[1758241863194,46.94254233,248.09,248.08,0.03]
[1758241863389,50.9733376,248.09,248.08,0.03]
[1758241863586,14.57991715,248.09,248.08,0.03]
[1758241863801,45.49991715,248.09,248.08,0.03]
[1758241866288,46.94254233,248.09,248.08,0.03]
[1758241866493,50.9733376,248.09,248.08,0.03]
[1758241868805,20.0533376,248.09,248.08,0.03]
[1758241869001,50.9733376,248.09,248.08,0.03]
[1758241869309,45.49991715,248.09,248.08,0.03]
[1758241869710,0.28432314,248.07,247.98,14.00404145]
[1758241869903,13.59559401,248.05,247.98,14.00404145]
[1758241870101,13.59559401,248.03,247.98,14.00404145]
[1758241870300,30.92,248.02,247.98,14.00404145]
[1758241870512,30.92,248.02,247.98,20.16291636]
[1758241873117,13.59559401,248.05,247.98,20.16291636]
[1758241873422,13.59559401,248.03,247.98,20.16291636]
[1758241873613,13.59559401,248.03,247.95,34.31110504]
[1758241873614,30.92,248.02,247.95,34.31110504]
[1758241873814,30.92,248.01,247.95,34.31110504]
[1758241874316,13.59559401,248.03,247.95,34.31110504]
[1758241874528,30.92,248.02,247.95,34.31110504]
[1758241875019,0.7,248.03,247.95,34.31110504]
[1758241875320,0.28432314,248.04,247.95,0.03]
[1758241875321,13.59559401,248.0,247.95,0.03]
[1758241875503,14.29559401,248.0,247.95,0.03]
[1758241876221,0.7,247.99,247.95,0.03]
[1758241876524,30.92,247.98,247.95,0.03]
[1758241876720,13.59559401,247.97,247.95,0.03]
[1758241876903,45.21559401,247.97,247.95,0.03]
[1758241877105,44.51559401,247.97,247.95,0.03]
[1758241878117,13.59559401,247.98,247.95,0.03]
[1758241878314,30.92,247.97,247.95,0.03]
[1758241878508,31.62,247.97,247.95,0.03]
[1758241878919,0.7,247.97,247.95,0.03]
[1758241879124,30.92,247.96,247.95,0.03]
[1758241880123,25.23904892,247.98,247.95,0.03]
[1758241880323,30.92,247.97,247.95,0.03]
[1758241880506,0.7,247.97,247.95,0.03]
[1758241880707,30.92,247.96,247.92,29.81141961]
[1758241881416,30.92,247.95,247.92,29.81141961]
[1758241881616,30.92,247.94,247.92,29.81141961]
[1758241881815,30.92,247.94,247.92,10.08389803]
[1758241882419,31.62,247.94,247.92,10.08389803]
[1758241882823,30.92,247.94,247.92,10.08389803]
[1758241883019,14.29559401,247.93,247.92,10.08389803]
[1758241883220,45.23559401,247.93,247.92,10.08389803]
[1758241883721,45.23559401,247.93,247.9,4.06388463]
[1758241883923,14.29559401,247.92,247.9,4.06388463]
[1758241884233,14.29559401,247.92,247.9,0.03]
[1758241884545,13.59559401,247.92,247.9,0.03]
[1758241884728,14.29559401,247.91,247.9,0.03]
[1758241884926,44.53559401,247.91,247.9,0.03]
[1758241885147,45.23559401,247.91,247.9,0.03]
[1758241886208,56.10130032,247.91,247.9,0.03]
[1758241886729,25.16130032,247.91,247.9,0.03]
[1758241886916,56.10130032,247.91,247.9,0.03]
[1758241888117,25.16130032,247.91,247.9,0.03]
[1758241888311,56.10130032,247.91,247.9,0.03]
[1758241889630,57.5439255,247.91,247.9,0.03]
[1758241889829,61.57764741,247.91,247.9,0.03]
[1758241890131,63.19266709,247.91,247.9,0.03]
[1758241892526,13.87991715,247.9,247.89,0.03]
[1758241892724,15.32254233,247.9,247.89,0.03]
[1758241892928,18.36663594,247.9,247.89,0.03]
[1758241893937,19.98198172,247.9,247.89,0.03]
[1758241894342,54.95586635,247.9,247.89,0.03]
[1758241897131,74.95586635,247.9,247.89,0.03]
[1758241897534,74.95586635,247.9,247.88,0.03]
[1758241897728,16.76516751,247.89,247.88,0.03]
[1758241897938,21.36194112,247.89,247.88,0.03]
[1758241898129,22.06194112,247.89,247.88,0.03]
[1758241898330,23.67735214,247.89,247.88,0.03]
[1758241899342,58.65139949,247.89,247.88,0.03]
[1758241900150,27.71139949,247.89,247.88,0.03]
[1758241900350,58.65139949,247.89,247.88,0.03]
[1758241903354,13.87991715,247.88,247.87,0.03]
[1758241903540,16.76516751,247.88,247.87,0.03]
[1758241903726,23.41503068,247.88,247.87,0.03]
[1758241904053,25.03050694,247.88,247.87,0.03]
[1758241905555,50.50545718,247.88,247.87,0.03]
[1758241905946,19.54545718,247.88,247.87,0.03]
[1758241906152,51.94808236,247.88,247.87,0.03]
[1758241906360,52.2324055,247.88,247.87,0.03]
[1758241906661,19.82978032,247.88,247.87,0.03]
[1758241906954,50.50545718,247.88,247.87,0.03]
[1758241908147,50.50545718,247.88,247.87,4.43]
[1758241908456,50.78978032,247.88,247.87,4.43]
[1758241909572,50.78978032,247.88,247.87,8.46437285]
[1758241911440,19.82978032,247.88,247.87,8.46437285]
[1758241911640,50.78978032,247.88,247.87,8.46437285]
[1758241911854,50.78978032,247.88,247.87,4.43]
[1758241912934,51.48978032,247.88,247.87,4.43]
[1758241913133,56.9666156,247.88,247.87,4.43]
[1758241913331,52.9324055,247.88,247.87,0.03]
[1758241913530,52.2324055,247.88,247.87,0.03]
[1758241913760,53.74999534,247.88,247.87,0.03]
[1758241915669,22.78999534,247.88,247.87,0.03]
[1758241916040,53.74999534,247.88,247.87,0.03]
[1758241916653,51.48978032,247.88,247.87,0.03]
[1758241916958,53.74999534,247.88,247.87,0.03]
[1758241918044,40.15440133,247.88,247.87,0.03]
[1758241918447,6.93418631,247.88,247.87,0.03]
[1758241918650,5.94986317,247.88,247.87,0.03]
[1758241918844,50.50545718,247.88,247.87,0.03]
[1758241919052,50.78978032,247.88,247.87,0.03]
[1758241921066,51.46978032,247.88,247.87,0.03]
[1758241921762,37.87418631,247.88,247.87,0.03]
[1758241922072,51.46978032,247.88,247.87,0.03]
[1758241925363,20.50978032,247.88,247.87,0.03]
[1758241925568,51.46978032,247.88,247.87,0.03]
[1758241925868,45.51991715,247.88,247.87,0.03]
[1758241926870,47.78013217,247.88,247.87,0.03]
[1758241927169,47.84013217,247.88,247.87,0.03]
[1758241928667,51.87434227,247.88,247.87,0.03]
[1758241929271,53.4895576,247.88,247.87,0.03]
[1758241929648,22.5295576,247.88,247.87,0.03]
[1758241929845,53.4895576,247.88,247.87,0.03]
[1758241933181,22.5295576,247.88,247.87,0.03]
[1758241933371,53.4895576,247.88,247.87,0.03]
[1758241933569,55.74977262,247.88,247.87,0.03]
[1758241940297,24.78977262,247.88,247.87,0.03]
[1758241940583,55.74977262,247.88,247.87,0.03]
[1758241940786,24.78977262,247.88,247.87,0.03]
[1758241940960,55.74977262,247.88,247.87,0.03]
[1758241942286,24.78977262,247.88,247.87,0.03]
[1758241942887,55.74977262,247.88,247.87,0.03]
[1758241944688,24.78977262,247.88,247.87,0.03]
[1758241944998,52.8095576,247.88,247.87,0.03]
[1758241945782,53.5195576,247.88,247.87,0.03]
[1758241950403,55.77977262,247.88,247.87,0.03]
[1758241950775,13.87991715,247.87,247.85,0.03]
[1758241950991,18.40034719,247.87,247.85,0.03]
[1758241951195,19.11034719,247.87,247.85,0.03]
[1758241951397,20.72595395,247.87,247.85,0.03]
[1758241952671,24.7603268,247.87,247.85,0.03]
[1758241954688,69.2203268,247.87,247.85,0.03]
[1758241955204,55.7203268,247.87,247.85,0.03]
[1758241956302,24.7603268,247.87,247.85,0.03]
[1758241956485,55.7203268,247.87,247.85,0.03]
[1758241957304,39.87991715,247.85,247.84,0.03]
[1758241957496,73.10013217,247.85,247.84,0.03]
[1758241957697,42.85013217,247.85,247.84,0.03]
[1758241957893,73.81013217,247.85,247.84,0.03]
[1758241958401,79.46050259,247.85,247.84,0.03]
[1758241960391,77.20028757,247.85,247.84,0.03]
[1758241960708,79.46050259,247.85,247.84,0.03]
[1758241963101,91.67233489,247.85,247.84,0.03]
[1758241965503,17.91477835,247.84,247.83,0.2]
[1758241965701,20.17499337,247.84,247.83,0.2]
[1758241966002,51.84499337,247.84,247.83,0.2]
[1758241966200,53.46073065,247.84,247.83,0.2]
[1758241974025,52.64808056,247.84,247.83,0.2]
[1758241974188,21.68808056,247.84,247.83,0.2]
[1758241974388,52.64808056,247.84,247.83,0.2]
[1758241974579,15.49565443,247.84,247.83,0.2]
[1758241974907,45.98315894,247.84,247.83,0.2]
[1758241975100,46.26748208,247.84,247.83,0.2]
[1758241978123,44.81991715,247.84,247.83,0.2]
[1758241978295,46.26748208,247.84,247.83,0.2]
[1758241979218,13.59559401,247.84,247.83,4.235024]
[1758241979802,13.65559401,247.84,247.83,4.235024]
[1758241980100,13.65559401,247.84,247.83,8.635024]
[1758241980312,44.59559401,247.84,247.83,8.635024]
[1758241982019,1e-08,247.84,247.83,8.635024]
[1758241984903,1e-08,247.87,247.83,18.72258402]
[1758241985093,23.74,247.9,247.83,38.89770406]
[1758241985615,23.74,247.9,247.83,40.51220225]
[1758241986012,31.0,247.91,247.86,26.0]
[1758241986504,31.0,247.91,247.83,38.89770406]
[1758241986505,0.06,247.91,247.83,38.89770406]
[1758241986697,13.59559401,247.9,247.83,38.89770406]
[1758241987900,44.53559401,247.9,247.83,38.89770406]
[1758241988402,31.0,247.91,247.83,38.89770406]
[1758241990039,0.06,247.91,247.83,38.89770406]
[1758241990210,0.06,247.91,247.86,26.0]
[1758241991112,0.06,247.91,247.88,26.0]
[1758241992322,0.06,247.91,247.89,4.03404735]
[1758241993821,1e-08,247.91,247.89,4.03404735]
[1758241994129,1e-08,247.93,247.89,14.11916574]
[1758241994604,1e-08,247.93,247.89,15.73320791]
[1758241994805,1e-08,247.93,247.89,14.11916574]
[1758241996299,0.7,247.92,247.89,14.11916574]
[1758241997222,1e-08,247.93,247.89,14.11916574]
[1758241997820,1e-08,247.93,247.89,10.08511839]
[1758241998024,0.70000001,247.93,247.89,10.08511839]
[1758241999409,0.7,247.92,247.86,14.12087468]
[1758242000533,13.59559402,247.93,247.86,14.12087468]
[1758242000730,1e-08,247.93,247.86,34.2935528]
[1758242001033,1e-08,247.93,247.89,26.0]
[1758242001726,1e-08,247.93,247.89,1.61397704]
[1758242001912,1e-08,247.94,247.9,26.40338846]
[1758242002108,0.06,247.96,247.9,26.40338846]
[1758242002109,1e-08,247.96,247.9,26.40338846]
[1758242002312,1e-08,247.96,247.94,26.0]
[1758242002811,1e-08,247.96,247.95,30.03307118]
[1758242007032,0.06,248.01,247.96,26.0]
[1758242007339,0.06,248.01,247.95,34.28110504]
[1758242007540,0.06,248.01,247.95,35.89475653]
[1758242011430,0.06,248.01,247.95,66.81475653]
[1758242012341,0.06,248.01,247.95,35.89475653]
[1758242012732,0.06,248.01,247.95,66.81475653]
[1758242016447,0.06,248.01,247.95,66.84475653]
[1758242017449,0.78,248.01,247.98,26.0]
[1758242017624,0.06,248.01,247.98,26.0]
[1758242017825,1e-08,248.01,247.98,56.9]
[1758242018343,1e-08,248.01,247.99,1.61332607]
[1758242019045,1e-08,248.04,248.03,26.0]
[1758242019232,0.06,248.11,248.03,57.04]
[1758242019945,0.06,248.11,248.03,26.40317703]
[1758242020147,0.06,248.11,248.07,26.0]
[1758242020448,0.06,248.11,248.08,31.04]
[1758242020849,0.06,248.11,248.08,36.68382846]
[1758242022252,0.06,248.11,248.08,5.64382846]
[1758242024251,0.06,248.11,248.1,26.0]
[1758242024437,0.06,248.11,248.08,15.72122284]
[1758242024438,0.1,248.13,248.11,26.0]
[1758242026354,0.1,248.13,248.11,30.03047035]
[1758242026656,0.1,248.13,248.11,61.03047035]
[1758242031439,0.1,248.13,248.11,61.01047035]
[1758242035561,0.79,248.12,248.11,30.03047035]
[1758242035944,0.79,248.12,248.11,60.99047035]
[1758242036448,0.1,248.12,248.11,60.99047035]
[1758242036763,0.1,248.12,248.11,30.03047035]
[1758242037070,0.1,248.12,248.11,60.99047035]
[1758242037746,0.1,248.12,248.11,60.97047035]
[1758242038766,0.1,248.12,248.11,30.03047035]
[1758242038974,0.1,248.12,248.11,60.97047035]
[1758242039974,0.1,248.12,248.11,30.03047035]
[1758242040145,0.79,248.12,248.11,4.03047035]
[1758242041761,0.1,248.12,248.11,34.43047035]
[1758242041962,0.79,248.12,248.11,34.43047035]
[1758242042149,0.1,248.12,248.11,34.43047035]
[1758242042848,0.79,248.12,248.11,34.43047035]
[1758242044650,0.1,248.12,248.11,34.43047035]
[1758242047073,0.1,248.12,248.11,65.37047035]
[1758242047768,0.79,248.12,248.11,8.43047035]
[1758242051079,0.79,248.12,248.11,4.4]
[1758242051472,0.79,248.12,248.11,8.43047035]
[1758242052490,0.79,248.12,248.11,8.46047035]
[1758242054480,14.38559401,248.12,248.11,4.43]
[1758242054862,14.38559401,248.12,248.11,8.46047035]
[1758242056171,14.38559401,248.12,248.11,4.43]
[1758242057206,14.38559401,248.12,248.11,8.46047035]
[1758242058568,0.1,248.12,248.11,8.46047035]
[1758242059069,0.79,248.12,248.11,8.46047035]
[1758242062392,0.1,248.12,248.11,8.46047035]
[1758242062599,0.79,248.12,248.11,8.46047035]
[1758242064480,14.38559401,248.12,248.11,8.46047035]
[1758242069791,14.38559401,248.12,248.11,4.43]
[1758242074190,14.38559401,248.12,248.11,8.46047035]
[1758242074397,14.38559401,248.12,248.11,4.43]
[1758242076597,14.38559401,248.12,248.11,8.46047035]
[1758242078097,14.66991715,248.12,248.11,3.71]
[1758242078301,13.87991715,248.11,248.08,0.03]
[1758242078485,16.13373111,248.09,248.08,0.03]
[1758242078687,44.79991715,248.09,248.08,0.03]
[1758242078900,14.31559401,248.09,248.08,0.03]
[1758242079085,13.59559401,248.09,248.08,0.03]
[1758242082886,13.59559401,248.09,248.08,0.75]
[1758242083208,13.59559401,248.09,248.08,0.03]
[1758242085910,13.69559401,248.12,248.08,0.03]
[1758242086407,0.72,248.11,248.08,0.03]
[1758242087415,0.72,248.1,248.08,0.03]
[1758242087711,13.87991715,248.09,248.08,0.03]
[1758242088013,16.13373111,248.09,248.08,0.03]
[1758242088189,20.88452638,248.09,248.08,0.03]
[1758242089900,16.85373111,248.09,248.08,0.03]
[1758242090711,20.88452638,248.09,248.08,0.03]
[1758242090892,51.82452638,248.09,248.08,0.03]
[1758242091293,47.79373111,248.09,248.08,0.03]
[1758242092718,14.59991715,248.09,248.08,0.03]
[1758242092898,45.53991715,248.09,248.08,0.03]
[1758242093513,14.59991715,248.09,248.08,0.03]
[1758242093722,45.53991715,248.09,248.08,0.03]
[1758242095305,14.59991715,248.09,248.08,0.03]
[1758242095512,45.51991715,248.09,248.08,0.03]
[1758242101204,44.51559401,248.09,248.08,0.72]
[1758242101517,13.59559401,248.09,248.08,0.72]
[1758242101718,0.1,248.12,248.08,0.72]
[1758242102024,13.59559401,248.11,248.09,0.69]
[1758242102231,0.1,248.12,248.1,0.69]
[1758242102519,13.69559401,248.12,248.1,0.69]
[1758242103202,13.69559401,248.12,248.11,4.03047035]
[1758242103608,14.38559401,248.12,248.08,0.03]
[1758242103797,1.72816845,248.11,248.08,0.03]
[1758242104113,13.59559401,248.09,248.08,0.03]
[1758242104619,14.28559401,248.09,248.08,0.03]
[1758242104920,13.59559401,248.09,248.08,4.06095775]
[1758242105312,13.59559401,248.09,248.08,0.03]
[1758242105819,44.53559401,248.09,248.08,0.03]
[1758242106602,45.22559401,248.09,248.08,0.03]
[1758242109822,45.50991715,248.09,248.08,0.03]
[1758242111833,45.50991715,248.09,248.08,4.43]
[1758242115426,44.51559401,248.09,248.08,8.46095775]
[1758242115750,44.51559401,248.09,248.08,4.43]
[1758242116204,45.20559401,248.09,248.08,4.43]
[1758242116408,45.48991715,248.09,248.08,4.43]
[1758242116611,45.48991715,248.09,248.08,0.03]
[1758242116612,49.52071242,248.09,248.08,0.03]
[1758242116804,50.96455773,248.09,248.08,0.03]
[1758242118433,49.52071242,248.09,248.08,0.03]
[1758242118616,50.96455773,248.09,248.08,0.03]
[1758242118818,18.60071242,248.09,248.08,0.03]
[1758242119024,49.56071242,248.09,248.08,0.03]
[1758242120427,51.00455773,248.09,248.08,0.03]
[1758242121239,49.58071242,248.09,248.08,0.03]
[1758242121537,51.02455773,248.09,248.08,0.03]
[1758242121912,18.31638928,248.09,248.08,0.03]
[1758242122127,50.72023459,248.09,248.08,0.03]
[1758242122328,51.00455773,248.09,248.08,0.03]
[1758242122712,50.86239616,248.09,248.08,0.03]
[1758242123113,51.00455773,248.09,248.08,0.03]
[1758242123809,13.87991715,248.09,248.08,0.03]
[1758242124015,44.83991715,248.09,248.08,0.03]
[1758242125015,45.51991715,248.09,248.08,0.03]
[1758242125350,13.87991715,248.09,248.08,0.74]
[1758242125520,45.17991715,248.09,248.08,0.74]
[1758242125721,45.17991715,248.09,248.08,0.03]
[1758242125941,13.87991715,248.09,248.08,0.74]
[1758242126147,44.89559401,248.09,248.08,0.03]
[1758242126322,44.89559401,248.09,248.08,0.74]
[1758242126930,13.59559401,248.09,248.08,0.74]
[1758242127120,44.89559401,248.09,248.08,0.74]
[1758242127421,44.89559401,248.09,248.08,0.03]
[1758242128046,45.85991715,248.09,248.08,0.03]
[1758242128249,47.30376246,248.09,248.08,0.03]
[1758242130943,13.87991715,248.09,248.08,0.03]
[1758242131151,45.19991715,248.09,248.08,0.03]
[1758242131950,45.87991715,248.09,248.08,0.03]
[1758242132264,45.19991715,248.09,248.08,0.03]
[1758242133624,45.87991715,248.09,248.08,0.03]
[1758242134042,45.19991715,248.09,248.08,0.03]
[1758242136147,13.87991715,248.09,248.08,0.03]
[1758242136352,45.17991715,248.09,248.08,0.03]
[1758242136846,13.87991715,248.09,248.08,0.03]
[1758242137067,45.25991715,248.09,248.08,0.03]
[1758242138051,45.93991715,248.09,248.08,0.03]
[1758242140442,47.38376246,248.09,248.08,0.03]
[1758242140652,45.93991715,248.09,248.08,0.03]
[1758242143154,45.89991715,248.09,248.08,0.03]
[1758242143662,45.21991715,248.09,248.08,0.03]
[1758242144147,45.89991715,248.09,248.08,0.03]
[1758242145669,45.21991715,248.09,248.08,0.03]
[1758242149956,45.89991715,248.09,248.08,0.03]
[1758242150259,46.66376246,248.09,248.08,0.03]
[1758242150464,47.34376246,248.09,248.08,0.03]
[1758242150765,45.87991715,248.09,248.08,0.03]
[1758242153363,45.23991715,248.09,248.08,0.03]
[1758242154152,45.91991715,248.09,248.08,0.03]
[1758242154545,45.23991715,248.09,248.08,0.03]
[1758242155953,45.90991715,248.09,248.08,0.03]
[1758242156768,45.23991715,248.09,248.08,0.03]
[1758242156956,13.87991715,248.09,248.08,0.03]
[1758242157155,45.21991715,248.09,248.08,0.71]
[1758242157965,45.21991715,248.09,248.08,4.06095775]
[1758242159847,45.21991715,248.09,248.08,0.03]
[1758242160361,45.88991715,248.09,248.08,0.03]
[1758242160566,45.21991715,248.09,248.08,0.03]
[1758242164251,45.88991715,248.09,248.08,0.03]
[1758242165470,45.21991715,248.09,248.08,0.03]
[1758242173178,44.93559401,248.09,248.08,0.03]
[1758242174579,45.60559401,248.09,248.08,0.03]
[1758242176879,14.26559401,248.09,248.08,0.03]
[1758242177086,45.48559401,248.09,248.08,0.03]
[1758242177381,44.81559401,248.09,248.08,0.03]
[1758242178460,0.06,248.11,248.08,0.71]
[1758242178661,13.59559401,248.1,248.08,0.71]
[1758242179160,13.59559401,248.1,248.09,4.03079527]
[1758242179477,13.59559401,248.1,248.09,4.71079527]
[1758242180465,31.26,248.11,248.09,4.71079527]
[1758242180466,0.06,248.11,248.09,4.71079527]
[1758242180784,44.79559401,248.1,248.09,4.71079527]
[1758242182086,44.79559401,248.1,248.09,4.03079527]
[1758242183582,0.06,248.11,248.09,30.71079527]
[1758242183775,0.06,248.11,248.1,0.68]
[1758242183979,0.06,248.11,248.09,30.03079527]
[1758242184281,13.65559401,248.11,248.09,4.03079527]
[1758242184985,13.59559401,248.09,248.08,0.03]
[1758242185365,14.27559401,248.09,248.08,4.06095775]
[1758242185666,14.27559401,248.09,248.08,0.03]
[1758242186667,16.53111916,248.09,248.08,0.03]
[1758242187590,20.56191443,248.09,248.08,0.03]
[1758242188175,20.84623757,248.09,248.08,0.03]
[1758242197489,22.46034487,248.09,248.08,0.03]
[1758242197687,20.20481972,248.09,248.08,0.03]
[1758242197884,51.96623757,248.09,248.08,0.03]
[1758242198694,49.71071242,248.09,248.08,0.03]
[1758242198995,51.96623757,248.09,248.08,0.03]
[1758242199789,49.71071242,248.09,248.08,0.03]
[1758242199985,18.59071242,248.09,248.08,0.03]
[1758242200194,51.96623757,248.09,248.08,0.03]
[1758242200379,20.84623757,248.09,248.08,0.03]
[1758242200585,51.96623757,248.09,248.08,0.03]
[1758242208097,20.84623757,248.09,248.08,0.03]
[1758242208300,51.92623757,248.09,248.08,0.03]
[1758242210899,49.67071242,248.09,248.08,0.03]
[1758242211082,51.92623757,248.09,248.08,0.03]
[1758242212601,49.65071242,248.09,248.08,0.03]
[1758242212799,51.90623757,248.09,248.08,0.03]
[1758242213110,51.22623757,248.09,248.08,0.03]
[1758242213413,70.93991715,248.09,248.08,0.03]
[1758242213617,73.1954423,248.09,248.08,0.03]
[1758242214197,42.1354423,248.09,248.08,0.03]
[1758242214400,73.1954423,248.09,248.08,0.03]
[1758242214828,42.1354423,248.09,248.08,0.03]
[1758242215005,73.1954423,248.09,248.08,0.03]
[1758242215508,77.22623757,248.09,248.08,0.03]
[1758242215917,77.93623757,248.09,248.08,0.03]
[1758242218916,51.93623757,248.09,248.08,0.03]
[1758242219819,51.12534428,248.09,248.08,0.03]
[1758242221514,52.73932132,248.09,248.08,0.03]
[1758242225695,54.18395318,248.09,248.08,0.03]
[1758242227626,0.28432314,248.08,248.07,0.03]
[1758242227831,16.76918087,248.08,248.07,0.03]
[1758242228196,17.47918087,248.08,248.07,0.03]
[1758242228599,21.51013862,248.08,248.07,0.03]
[1758242228808,23.12431105,248.08,248.07,0.03]
[1758242229855,20.23504733,248.08,248.07,0.03]
[1758242230012,21.67967919,248.08,248.07,0.03]
[1758242230209,52.67967919,248.08,248.07,0.03]
[1758242231030,33.02504733,248.08,248.07,0.03]
[1758242231227,65.46967919,248.08,248.07,0.03]
[1758242232327,66.17967919,248.08,248.07,0.03]
[1758242232531,65.46967919,248.08,248.07,0.03]
[1758242233307,13.87991715,248.08,248.07,0.73]
[1758242233609,13.59559401,248.08,248.07,0.73]
[1758242233813,44.63559401,248.08,248.07,0.73]
[1758242234698,13.59559401,248.08,248.07,0.73]
[1758242234904,44.65559401,248.08,248.07,0.73]
[1758242235114,44.79775558,248.08,248.07,0.73]
[1758242235515,44.93991715,248.08,248.07,0.73]
[1758242235913,44.65559401,248.08,248.07,0.73]
[1758242236134,13.59559401,248.08,248.07,0.73]
[1758242236434,44.65559401,248.08,248.07,0.73]
[1758242237226,13.59559401,248.08,248.07,0.73]
[1758242237408,44.65559401,248.08,248.07,0.73]
[1758242238218,0.06,248.11,248.08,14.10835213]
[1758242238402,0.06,248.11,248.09,0.7]
[1758242238403,44.65559401,248.1,248.09,0.7]
[1758242239210,44.65559401,248.1,248.09,4.73079527]
[1758242239605,44.65559401,248.1,248.09,0.7]
[1758242241913,44.65559401,248.1,248.09,4.73079527]
[1758242243731,13.59559401,248.1,248.09,4.73079527]
[1758242243929,0.06,248.11,248.09,4.73079527]
[1758242244136,0.06,248.11,248.09,4.03079527]
[1758242244430,0.06,248.11,248.1,0.7]
[1758242245126,1e-08,248.11,248.1,0.7]
[1758242245918,1e-08,248.12,248.11,26.0]
[1758242246127,0.06,248.14,248.11,1.06304703]
[1758242246432,1e-08,248.15,248.13,26.0]
[1758242246821,1e-08,248.15,248.14,0.66]
[1758242247312,1e-08,248.15,248.14,2.2724806]
[1758242247837,1e-08,248.15,248.14,6.30246367]
[1758242251634,1e-08,248.16,248.14,6.30246367]
[1758242251822,1e-08,248.16,248.15,0.66]
[1758242253640,1e-08,248.16,248.15,4.68982067]
[1758242254416,1e-08,248.16,248.15,4.02982067]
[1758242255012,1e-08,248.16,248.15,4.68982067]
[1758242255229,1e-08,248.16,248.15,6.30230127]
[1758242258234,1e-08,248.16,248.15,5.64230127]
[1758242258630,1e-08,248.16,248.15,4.02982067]
[1758242258631,0.66000001,248.16,248.15,4.02982067]
[1758242258835,0.66000001,248.16,248.15,4.05982067]
[1758242259436,1e-08,248.16,248.15,4.05982067]
[1758242260032,1e-08,248.16,248.15,0.03]
[1758242263444,1e-08,248.16,248.15,0.69]